bitfinex/quotes_ETHUSD_20240730
["timestamp","ask_amount","ask_price","bid_price","bid_amount"]
[1722311552327,0.39470027,3326.0,3325.6,35.0]
[1722311552523,2.4055,3325.7,3325.6,35.0]
[1722311555109,4.811,3325.7,3325.6,35.0]
[1722311557037,2.40585,3325.3,3325.0,1.11]
[1722311557227,2.40588,3325.2,3325.0,1.11]
[1722311557427,2.56882489,3325.2,3325.1,35.0]
[1722311557608,2.40588,3325.2,3325.1,35.0]
[1722311560858,2.40577,3325.4,3325.1,35.0]
[1722311561070,2.4058,3325.3,3325.1,35.0]
[1722311561214,2.56874489,3325.3,3325.1,35.0]
[1722311563379,0.16294489,3325.3,3325.1,35.0]
[1722311564570,2.56873489,3325.3,3325.1,35.0]
[1722311565874,0.16294489,3325.3,3325.1,35.0]
[1722311566243,2.4057,3325.5,3325.1,35.0]
[1722311566423,0.16311254,3325.2,3325.1,35.0]
[1722311566618,2.40573,3325.4,3325.1,35.0]
[1722311566818,0.16311254,3325.2,3325.1,35.0]
[1722311567051,2.40573,3325.4,3325.1,35.0]
[1722311567271,0.16311254,3325.2,3325.1,35.0]
[1722311567428,2.40573,3325.4,3325.1,35.0]
[1722311567622,0.16311254,3325.2,3325.1,35.0]
[1722311567818,2.40573,3325.4,3325.1,35.0]
[1722311568023,0.16311254,3325.2,3325.1,35.0]
[1722311568322,2.40573,3325.4,3325.1,35.0]
[1722311568532,0.16311254,3325.3,3325.1,35.0]
[1722311569361,2.56897254,3325.3,3325.1,35.0]
[1722311570522,2.40587,3325.2,3325.1,35.0]
[1722311570760,2.56899578,3325.2,3325.1,35.0]
[1722311573241,0.16312578,3325.2,3325.1,35.0]
[1722311573455,2.40558,3325.6,3325.1,35.0]
[1722311573456,2.40565,3325.5,3325.1,35.0]
[1722311573667,2.40565,3325.5,3325.2,1.11]
[1722311573852,2.40573,3325.4,3325.2,1.11]
[1722311574372,2.40573,3325.4,3325.3,35.0]
[1722311574529,2.4055,3325.7,3325.3,35.0]
[1722311574869,2.40558,3325.6,3325.3,35.0]
[1722311575982,8.99521846,3325.9,3325.4,1.11]
[1722311576129,9.82537,3325.9,3325.4,1.11]
[1722311576329,7.42,3325.9,3325.4,1.11]
[1722311576524,7.42,3325.9,3325.5,35.0]
[1722311576848,7.42,3325.9,3325.6,1.11]
[1722311577545,7.42,3325.9,3325.7,35.0]
[1722311577734,1.57565522,3326.0,3325.7,35.0]
[1722311577937,3.98087522,3326.1,3325.7,35.0]
[1722311578527,1.57565522,3326.0,3325.7,35.0]
[1722311578935,3.98087522,3326.1,3325.7,35.0]
[1722311579405,3.9820673,3326.1,3325.7,35.0]
[1722311579934,1.5768473,3326.1,3325.8,1.11]
[1722311580135,3.9819873,3326.2,3325.8,1.11]
[1722311580566,3.9819873,3326.2,3325.9,35.0]
[1722311581599,9.825,3326.4,3325.9,35.0]
[1722311581893,1.57754922,3326.0,3325.9,35.0]
[1722311582049,2.40523,3326.1,3325.9,35.0]
[1722311582250,1.57765165,3326.0,3325.9,35.0]
[1722311582640,3.98294165,3326.0,3325.9,35.0]
[1722311582840,4.38123582,3326.0,3325.9,35.0]
[1722311583468,2.80358417,3326.0,3325.9,35.0]
[1722311584083,3.20740253,3326.0,3325.9,35.0]
[1722311585054,2.80358417,3326.0,3325.9,35.0]
[1722311586843,2.96168295,3326.0,3325.9,35.0]
[1722311592691,7.76757295,3326.0,3325.9,35.0]
[1722311593049,9.66216355,3326.0,3325.9,35.0]
[1722311593849,2.96168295,3326.0,3325.9,35.0]
[1722311594477,5.36697295,3326.0,3325.9,35.0]
[1722311594810,7.26155026,3326.0,3325.9,35.0]
[1722311594979,5.36697295,3326.0,3325.9,35.0]
[1722311595318,2.96168295,3326.0,3325.9,35.0]
[1722311595868,2.96168295,3326.0,3325.6,1.11]
[1722311596171,3.98412601,3325.9,3325.6,1.11]
[1722311596377,0.15807225,3325.8,3325.7,35.0]
[1722311596968,1.57876601,3325.9,3325.7,35.0]
[1722311597297,0.15807665,3325.8,3325.7,35.0]
[1722311598899,0.15807665,3325.8,3325.7,37.3549]
[1722311599400,0.15808993,3325.8,3325.7,37.3549]
[1722311599604,1.57864046,3326.0,3325.7,37.3549]
[1722311599766,0.15808993,3325.8,3325.7,37.3549]
[1722311600101,1.57864046,3326.0,3325.7,37.3549]
[1722311600612,0.15808993,3325.9,3325.7,37.3549]
[1722311603432,0.15808993,3325.9,3325.8,1.11]
[1722311603938,1.57844745,3326.1,3325.7,2.3549]
[1722311604144,0.15817849,3325.9,3325.8,35.0]
[1722311604434,0.15818734,3325.9,3325.8,35.0]
[1722311604633,1.57822877,3326.1,3325.8,35.0]
[1722311604848,0.15818734,3325.9,3325.8,35.0]
[1722311605001,1.57822877,3326.1,3325.8,35.0]
[1722311605350,0.15818734,3325.9,3325.8,36.11]
[1722311605554,1.57822877,3326.1,3325.8,36.11]
[1722311605942,0.15824044,3326.0,3325.8,36.11]
[1722311608208,0.15824044,3325.9,3325.8,36.11]
[1722311608879,1.57819508,3326.1,3325.8,36.11]
[1722311609082,0.15824044,3325.9,3325.8,36.11]
[1722311609375,1.57819508,3326.1,3325.8,36.11]
[1722311609578,3.98354508,3326.0,3325.8,35.0]
[1722311609778,0.15824044,3325.9,3325.8,35.0]
[1722311614971,4.14221229,3325.9,3325.8,35.0]
[1722311617554,2.56360044,3325.9,3325.8,35.0]
[1722311617760,4.14272088,3325.9,3325.8,35.0]
[1722311619356,4.14272088,3325.9,3325.8,36.11]
[1722311619357,1.73736088,3325.9,3325.8,36.11]
[1722311619554,0.15824044,3325.9,3325.8,36.11]
[1722311620351,1.73736088,3325.9,3325.8,36.11]
[1722311621111,1.73811323,3325.9,3325.8,36.11]
[1722311621603,1.73827759,3325.9,3325.8,36.11]
[1722311622291,1.73827759,3325.9,3325.8,35.0]
[1722311623156,1.7383069,3325.9,3325.8,35.0]
[1722311623768,0.15824044,3325.9,3325.8,35.0]
[1722311626802,1.7383428,3325.9,3325.8,35.0]
[1722311627207,0.15824044,3325.9,3325.8,35.0]
[1722311628207,1.58012508,3325.9,3325.8,36.11]
[1722311628365,1.73828583,3325.9,3325.8,36.11]
[1722311629709,0.15816075,3325.9,3325.8,36.11]
[1722311630207,1.58012508,3326.1,3325.8,36.11]
[1722311630370,0.15816075,3325.9,3325.8,36.11]
[1722311630707,2.40508,3326.3,3325.8,36.11]
[1722311630875,0.15816075,3325.9,3325.8,36.11]
[1722311631405,1.57990176,3326.1,3325.8,36.11]
[1722311631972,0.15816075,3326.0,3325.8,36.11]
[1722311633006,1.73806251,3326.0,3325.8,36.11]
[1722311634304,1.73801298,3326.0,3325.8,36.11]
[1722311634712,1.737982,3326.0,3325.8,36.11]
[1722311636205,0.15816075,3326.0,3325.8,36.11]
[1722311636712,1.57976152,3326.0,3325.8,36.11]
[1722311636885,0.15823159,3325.9,3325.8,36.11]
[1722311637097,1.57976152,3326.1,3325.8,36.11]
[1722311637418,1.57976152,3326.0,3325.8,36.11]
[1722311637586,0.15823159,3326.0,3325.8,36.11]
[1722311637793,1.73799194,3326.0,3325.8,36.11]
[1722311638113,0.15823159,3326.0,3325.8,36.11]
[1722311638418,1.73799194,3326.0,3325.8,36.11]
[1722311639506,0.15823159,3326.0,3325.8,36.11]
[1722311640931,1.57988977,3326.1,3325.8,36.11]
[1722311641126,0.15829798,3325.9,3325.8,36.11]
[1722311641599,1.57988977,3326.0,3325.8,36.11]
[1722311641794,0.15829798,3325.9,3325.8,36.11]
[1722311643615,1.73835042,3325.9,3325.8,36.11]
[1722311644313,0.15829798,3325.9,3325.8,36.11]
[1722311644911,1.73835042,3325.9,3325.8,36.11]
[1722311645096,0.15829798,3325.9,3325.8,36.11]
[1722311645301,1.73835042,3325.9,3325.8,36.11]
[1722311645851,1.73835042,3325.9,3325.8,35.0]
[1722311646226,0.15829798,3325.9,3325.8,35.0]
[1722311647728,1.73852288,3325.9,3325.8,35.0]
[1722311648132,0.15829798,3325.9,3325.8,35.0]
[1722311648321,1.73850848,3325.9,3325.8,35.0]
[1722311648521,0.15829798,3325.9,3325.8,35.0]
[1722311648857,1.73845663,3325.9,3325.8,35.0]
[1722311649218,1.73845663,3325.9,3325.8,36.11]
[1722311649658,0.15829355,3325.9,3325.8,36.11]
[1722311649831,0.15829355,3325.9,3325.8,41.41811288]
[1722311650036,1.58008518,3326.1,3325.8,41.41811288]
[1722311650230,1.58008518,3326.1,3326.0,1.11]
[1722311651761,4.30117222,3326.3,3326.0,1.11]
[1722311652062,2.40515,3326.2,3325.8,36.11]
[1722311652266,1.58000456,3326.0,3325.8,36.11]
[1722311652965,2.40515,3326.2,3325.8,36.11]
[1722311653177,1.58002106,3326.0,3325.8,36.11]
[1722311655374,1.58002106,3326.0,3325.8,35.0]
[1722311658238,3.98536106,3326.0,3325.8,35.0]
[1722311659808,2.40536,3325.9,3325.8,35.0]
[1722311661701,3.98541553,3326.0,3325.8,35.0]
[1722311661899,2.56353406,3325.9,3325.8,35.0]
[1722311665612,4.14390231,3325.9,3325.8,35.0]
[1722311665794,2.56353406,3325.9,3325.8,35.0]
[1722311670736,0.15817406,3325.9,3325.8,36.11]
[1722311674746,2.56353406,3325.9,3325.8,36.11]
[1722311677444,2.56353406,3325.9,3325.8,35.0]
[1722311687455,1.73836778,3325.9,3325.8,38.5702]
[1722311687634,0.15817406,3325.9,3325.8,38.5702]
[1722311689581,1.73833837,3325.9,3325.8,38.5702]
[1722311689958,0.15817406,3325.9,3325.8,38.5702]
[1722311690274,1.73833837,3325.9,3325.8,38.5702]
[1722311690680,0.15817406,3325.9,3325.8,40.20372299]
[1722311691253,1.58016431,3326.1,3325.8,40.20372299]
[1722311691506,1.58016431,3326.1,3326.0,1.11]
[1722311691997,1.73825424,3326.1,3326.0,1.11]
[1722311692784,0.15808993,3326.1,3326.0,1.11]
[1722311692967,1.73798874,3326.1,3326.0,1.11]
[1722311694072,1.73798874,3326.1,3326.0,3.94371256]
[1722311694271,0.15808993,3326.1,3326.0,6.40391256]
[1722311694689,7.42,3326.4,3326.0,6.40391256]
[1722311695015,0.15828027,3326.1,3326.0,5.29391256]
[1722311695210,7.42,3326.4,3326.0,5.29391256]
[1722311695354,7.42,3326.4,3326.3,1.11]
[1722311696811,8.99919552,3326.4,3326.3,1.11]
[1722311697113,9.82502,3326.4,3326.1,1.11]
[1722311697424,1.57907602,3326.2,3326.1,1.11]
[1722311698096,1.57907602,3326.3,3326.1,1.11]
[1722311698514,1.57907602,3326.2,3326.1,1.11]
[1722311698915,1.57907602,3326.3,3326.1,1.11]
[1722311699190,1.57907602,3326.2,3326.1,1.11]
[1722311699391,9.82502,3326.4,3326.1,1.11]
[1722311699721,1.57896607,3326.3,3326.1,1.11]
[1722311701200,1.57896607,3326.2,3326.1,1.11]
[1722311701639,2.40493,3326.5,3326.1,1.11]
[1722311701841,1.578937,3326.3,3326.1,1.11]
[1722311702053,2.40493,3326.5,3326.1,1.11]
[1722311702054,1.578937,3326.2,3326.1,1.11]
[1722311702269,1.578937,3326.2,3326.0,35.0]
[1722311702558,7.22602,3326.1,3326.0,35.0]
[1722311705460,4.82081,3326.1,3326.0,35.0]
[1722311707064,4.97912568,3326.1,3326.0,35.0]
[1722311708337,2.40529,3326.0,3325.7,1.11]
[1722311708550,1.57903091,3325.9,3325.7,1.11]
[1722311708860,1.57903091,3325.9,3325.8,35.0]
[1722311709561,2.40529,3326.0,3325.8,35.0]
[1722311709730,2.40536,3325.9,3325.8,35.0]
[1722311710617,5.72281677,3325.9,3325.8,35.0]
[1722311710823,11.52137677,3325.9,3325.8,35.0]
[1722311711018,12.07137677,3325.9,3325.8,35.0]
[1722311711274,2.40599,3325.1,3324.7,1.11]
[1722311711635,2.40599,3325.1,3325.0,35.0]
[1722311711980,3.98448195,3325.3,3325.0,35.0]
[1722311712265,3.98434195,3325.5,3325.1,1.11]
[1722311713443,1.57867195,3325.5,3325.1,1.11]
[1722311713639,2.40558,3325.6,3325.1,1.11]
[1722311713640,3.98345369,3325.6,3325.1,1.11]
[1722311713963,1.57787369,3325.5,3325.2,35.0]
[1722311714142,3.98345369,3325.6,3325.2,35.0]
[1722311714677,3.98323913,3325.6,3325.2,35.0]
[1722311715047,1.57765913,3325.5,3325.2,35.0]
[1722311715235,3.98323913,3325.6,3325.2,35.0]
[1722311717080,2.40573,3325.4,3325.2,35.0]
[1722311717686,2.40579,3325.3,3325.2,35.0]
[1722311722043,2.56328223,3325.3,3325.2,35.0]
[1722311723397,0.15749223,3325.3,3325.2,35.0]
[1722311723610,1.57654007,3325.7,3325.2,39.05574456]
[1722311723819,8.99654007,3325.9,3325.4,1.11]
[1722311723971,2.40536,3325.9,3325.4,1.11]
[1722311724294,2.40536,3325.9,3325.3,0.06014225]
[1722311724295,2.40536,3325.9,3325.7,35.0]
[1722311730052,2.40543,3325.8,3325.7,35.0]
[1722311734715,2.55773059,3325.8,3325.7,35.0]
[1722311736001,7.99055028,3325.8,3325.7,35.0]
[1722311736320,2.3735,3325.4,3324.6,3.5108]
[1722311736663,0.15246505,3325.3,3324.6,3.5108]
[1722311737012,0.15246505,3325.3,3325.1,35.0]
[1722311737938,2.40587,3325.2,3325.1,35.0]
[1722311738519,2.55833505,3325.2,3325.1,35.0]
[1722311738686,4.96420505,3325.2,3325.1,35.0]
[1722311745748,6.54082821,3325.2,3325.1,35.0]
[1722311746636,4.96420505,3325.2,3325.1,35.0]
[1722311746950,2.55833505,3325.2,3325.1,35.0]
[1722311748314,4.13536003,3325.2,3325.1,35.0]
[1722311748808,2.55833505,3325.2,3325.1,35.0]
[1722311749438,4.13536003,3325.2,3325.1,35.0]
[1722311749739,2.55833505,3325.2,3325.1,35.0]
[1722311750351,2.55833505,3325.2,3325.1,36.11]
[1722311750352,0.15246505,3325.2,3325.1,36.11]
[1722311750648,2.4058,3325.3,3325.1,36.11]
[1722311750870,0.15197615,3325.2,3325.1,35.0]
[1722311751655,3.98312094,3325.3,3325.1,35.0]
[1722311751862,0.15197615,3325.2,3325.1,35.0]
[1722311752222,3.98312094,3325.3,3325.1,35.0]
[1722311752437,0.15197615,3325.2,3325.1,35.0]
[1722311752679,3.98312094,3325.3,3325.1,35.0]
[1722311752883,0.15197615,3325.2,3325.1,35.0]
[1722311753679,1.5775674,3325.4,3325.1,36.11]
[1722311754180,0.15204282,3325.3,3325.1,36.11]
[1722311755345,1.57766032,3325.2,3325.1,35.0]
[1722311755540,3.98353032,3325.2,3325.1,35.0]
[1722311755789,4.1356087,3325.2,3325.1,35.0]
[1722311757395,2.55794838,3325.2,3325.1,35.0]
[1722311757596,4.13624177,3325.2,3325.1,35.0]
[1722311760573,2.55794838,3325.2,3325.1,35.0]
[1722311760773,4.13614179,3325.2,3325.1,35.0]
[1722311763011,2.55794838,3325.2,3325.1,35.0]
[1722311763597,0.15207838,3325.2,3325.1,35.0]
[1722311763831,3.98387035,3325.3,3325.1,35.0]
[1722311764132,2.55790838,3325.2,3325.1,35.0]
[1722311769942,0.15203838,3325.2,3325.1,36.11]
[1722311770105,0.15203838,3325.2,3325.1,43.90685288]
[1722311770440,8.99803404,3325.8,3325.3,2.40579]
[1722311770617,1.57803404,3325.8,3325.4,1.11]
[1722311771359,3.98341404,3325.9,3325.4,1.11]
[1722311771568,3.98341404,3325.9,3325.4,1.70673273]
[1722311772158,1.57803404,3325.8,3325.4,1.70673273]
[1722311772575,3.98341404,3325.9,3325.4,1.70673273]
[1722311772936,3.98317939,3325.9,3325.4,1.70673273]
[1722311774165,1.57779939,3325.9,3325.6,1.11]
[1722311774376,4.81056,3326.1,3325.8,3.3649]
[1722311774377,1.57779939,3326.1,3325.8,3.3649]
[1722311774677,1.57779939,3326.2,3326.0,1.11]
[1722311774978,2.405,3326.4,3326.0,1.11]
[1722311774979,1.57779939,3326.3,3326.0,1.11]
[1722311775334,3.98286939,3326.3,3325.8,3.3649]
[1722311775531,2.4053,3326.0,3325.6,3.3649]
[1722311775780,2.4053,3326.0,3325.9,35.0]
[1722311776354,3.98265131,3326.0,3325.9,35.0]
[1722311776557,2.4053,3326.0,3325.9,35.0]
[1722311777163,1.57715993,3326.1,3325.9,35.0]
[1722311778073,3.98237993,3326.1,3325.9,35.0]
[1722311778245,2.40522,3326.1,3325.9,35.0]
[1722311778773,2.40529,3326.0,3325.9,35.0]
[1722311779385,2.40519,3326.2,3325.9,35.0]
[1722311779580,2.40523,3326.1,3325.9,35.0]
[1722311781893,0.15234505,3326.0,3325.9,35.0]
[1722311783369,2.55763505,3326.0,3325.9,35.0]
[1722311787199,5.45921056,3326.0,3325.9,35.0]
[1722311787498,9.47346806,3326.0,3325.9,35.0]
[1722311788062,9.47358566,3326.0,3325.9,35.0]
[1722311789495,9.47366809,3326.0,3325.9,35.0]
[1722311790407,11.41290056,3326.0,3325.9,35.0]
[1722311790704,13.8541696,3326.0,3325.9,35.0]
[1722311791007,2.40591,3325.2,3324.9,1.11]
[1722311791460,2.40591,3325.2,3325.1,35.0]
[1722311792114,2.40591,3325.2,3325.1,36.11]
[1722311794101,2.40591,3325.2,3325.1,35.0]
[1722311796813,2.55813949,3325.2,3325.1,35.0]
[1722311812497,4.96404949,3325.2,3325.1,35.0]
[1722311812882,6.54064045,3325.2,3325.1,35.0]
[1722311813706,4.96404949,3325.2,3325.1,35.0]
[1722311814798,6.54064045,3325.2,3325.1,35.0]
[1722311814957,5.96279353,3325.2,3325.1,35.0]
[1722311815159,9.47870353,3325.2,3325.1,35.0]
[1722311815385,11.92061269,3325.2,3325.1,35.0]
[1722311815700,10.02870353,3325.2,3325.1,35.0]
[1722311815907,8.91870353,3325.2,3325.1,35.0]
[1722311816289,10.02870353,3325.2,3325.1,35.0]
[1722311816511,12.36460353,3325.2,3325.1,35.0]
[1722311817793,11.25460353,3325.2,3325.1,35.0]
[1722311818895,8.84869353,3325.2,3325.1,35.0]
[1722311823497,9.95869353,3325.2,3325.1,35.0]
[1722311823694,2.40604,3325.0,3324.2,2.4356]
[1722311823900,2.40652,3324.3,3324.2,2.4356]
[1722311824117,2.4066,3324.2,3324.0,2.3481]
[1722311824316,2.4066,3324.2,3324.1,35.0]
[1722311824762,2.55836279,3324.2,3324.1,35.0]
[1722311825143,0.15176279,3324.2,3324.1,36.11]
[1722311825656,2.40652,3324.3,3324.1,36.11]
[1722311825856,0.15176279,3324.2,3324.1,39.15901288]
[1722311826022,2.40652,3324.3,3324.1,39.15901288]
[1722311826460,2.40639,3324.5,3324.1,39.15901288]
[1722311826759,0.15176279,3324.2,3324.1,39.15901288]
[1722311827058,2.40645,3324.4,3324.1,39.15901288]
[1722311827229,0.15176279,3324.2,3324.1,39.15901288]
[1722311827420,2.40645,3324.4,3324.1,39.15901288]
[1722311827615,0.15176279,3324.3,3324.1,39.15901288]
[1722311827855,2.40645,3324.4,3324.2,2.68812414]
[1722311828066,2.40626,3324.7,3324.3,1.11]
[1722311828766,2.40642,3324.5,3324.3,1.11]
[1722311830868,2.40626,3324.7,3324.3,1.11]
[1722311831052,2.40626,3324.7,3324.4,2.3667]
[1722311831521,2.40626,3324.7,3324.5,35.0]
[1722311833257,2.40626,3324.7,3324.5,36.11]
[1722311833864,2.4063,3324.6,3324.5,35.0]
[1722311837237,3.98365908,3324.6,3324.5,35.0]
[1722311837628,2.4063,3324.6,3324.5,35.0]
[1722311839461,3.9843305,3324.6,3324.5,35.0]
[1722311840165,2.4063,3324.6,3324.5,35.0]
[1722311841353,3.98439352,3324.6,3324.5,35.0]
[1722311841973,4.1360896,3324.6,3324.5,35.0]
[1722311843292,4.13608558,3324.6,3324.5,35.0]
[1722311844199,2.55799608,3324.6,3324.5,35.0]
[1722311844354,4.13607832,3324.6,3324.5,35.0]
[1722311844749,4.13609095,3324.6,3324.5,35.0]
[1722311846002,6.54239095,3324.6,3324.5,35.0]
[1722311846364,4.96429608,3324.6,3324.5,35.0]
[1722311847593,7.94352569,3324.6,3324.5,35.0]
[1722311848134,11.49738021,3324.6,3324.5,35.0]
[1722311848277,2.40683,3323.9,3323.6,2.3798]
[1722311848676,2.40683,3323.9,3323.8,35.0]
[1722311849422,4.81366,3323.9,3323.8,35.0]
[1722311851621,3.98472776,3324.1,3323.8,37.4093]
[1722311851796,3.98457776,3324.3,3323.9,1.11]
[1722311851993,1.57804776,3324.3,3324.1,1.11]
[1722311852185,1.57804776,3324.6,3324.2,2.4093]
[1722311852387,2.40631,3324.6,3324.4,1.11]
[1722311852582,2.40631,3324.6,3324.5,35.0]
[1722311853955,2.55755697,3324.6,3324.5,35.0]
[1722311855145,0.15124697,3324.6,3324.5,35.0]
[1722311856234,1.72902502,3324.6,3324.5,35.0]
[1722311857255,0.15124697,3324.6,3324.5,35.0]
[1722311857555,0.15124697,3324.6,3324.5,40.36421288]
[1722311858460,1.57852897,3325.0,3324.5,42.77058288]
[1722311858759,0.1463479,3324.6,3324.5,42.77058288]
[1722311858926,1.57852897,3325.1,3324.5,42.77058288]
[1722311859264,7.42,3325.2,3324.7,4.72141]
[1722311859429,7.42,3325.2,3325.1,2.3056]
[1722311859814,7.42,3325.2,3325.1,37.3056]
[1722311860343,7.42,3325.2,3325.1,38.4156]
[1722311861560,7.56644127,3325.2,3325.1,38.4156]
[1722311861761,7.56644127,3325.2,3325.1,41.46461288]
[1722311863230,7.56644127,3325.2,3325.1,38.4156]
[1722311863963,0.14644127,3325.2,3325.1,38.4156]
[1722311864120,1.57663008,3325.6,3325.1,38.4156]
[1722311864319,0.14670794,3325.2,3325.1,38.4156]
[1722311864520,3.98217008,3325.7,3325.1,38.4156]
[1722311864748,0.14670794,3325.2,3325.1,38.4156]
[1722311864954,3.98217008,3325.7,3325.1,38.4156]
[1722311865253,0.14670794,3325.2,3325.1,38.4156]
[1722311865421,3.98217008,3325.7,3325.1,41.46461288]
[1722311865620,2.40554,3325.7,3325.1,38.4156]
[1722311865852,0.14670794,3325.6,3325.1,38.4156]
[1722311867166,2.55230794,3325.6,3325.1,38.4156]
[1722311868019,2.55230794,3325.6,3325.1,36.11]
[1722311869334,0.14670794,3325.6,3325.1,36.11]
[1722311869561,2.40544,3325.8,3325.2,2.3889]
[1722311869856,0.14673017,3325.5,3325.3,1.11]
[1722311870019,3.98111142,3326.0,3325.3,3.42943328]
[1722311870221,0.14673017,3325.4,3325.3,3.42943328]
[1722311870418,3.98029021,3326.0,3325.3,5.89535121]
[1722311870633,2.4053,3326.0,3325.3,5.89535121]
[1722311870877,0.14747257,3325.9,3325.3,5.89535121]
[1722311871050,0.14747257,3325.9,3325.4,0.82842512]
[1722311873123,2.55285257,3325.9,3325.4,0.82842512]
[1722311873335,2.40544,3325.8,3325.3,1.11]
[1722311873538,2.55301034,3325.8,3325.3,1.11]
[1722311875165,0.14757034,3325.8,3325.3,1.11]
[1722311875352,2.4053,3326.0,3325.3,1.11]
[1722311875553,0.14757034,3325.7,3325.4,0.590474]
[1722311875748,2.40537,3325.9,3325.3,1.11]
[1722311875948,0.14757034,3325.6,3325.3,1.11]
[1722311876264,2.40537,3325.9,3325.3,1.11]
[1722311876460,0.14766365,3325.5,3325.3,1.11]
[1722311876622,2.40537,3325.9,3325.3,1.11]
[1722311876827,0.14766365,3325.4,3325.3,1.11]
[1722311877068,2.40537,3325.9,3325.3,4.15901288]
[1722311877364,0.14766365,3325.8,3325.3,4.15901288]
[1722311878061,2.55314365,3325.8,3325.3,4.15901288]
[1722311880573,0.14766365,3325.8,3325.3,6.56480288]
[1722311880755,2.40523,3326.1,3325.5,1.11]
[1722311880931,0.14765475,3325.7,3325.3,3.51579]
[1722311881262,2.40523,3326.1,3325.3,3.51579]
[1722311881565,2.40541,3325.9,3325.3,1.11]
[1722311882365,0.14765475,3325.8,3325.3,1.11]
[1722311883228,2.55308475,3325.8,3325.3,1.11]
[1722311885459,2.40551,3325.7,3325.3,1.11]
[1722311886056,0.14765918,3325.6,3325.3,1.11]
[1722311895278,2.55323918,3325.6,3325.3,1.11]
[1722311897606,2.40567,3325.5,3325.2,1.11]
[1722311898023,0.14763255,3325.4,3325.2,1.11]
[1722311902505,0.14762365,3325.3,3325.2,2.29611302]
[1722311902703,2.40559,3325.6,3325.2,1.11]
[1722311902904,0.14762365,3325.5,3325.2,1.11]
[1722311904222,1.72525974,3325.5,3325.2,1.11]
[1722311904438,0.14762365,3325.5,3325.2,1.11]
[1722311905227,0.14762365,3325.5,3325.4,3.4372]
[1722311905442,0.14762365,3325.5,3325.4,5.84292]
[1722311905941,0.14759255,3325.5,3325.4,5.84292]
[1722311906237,1.57999834,3325.8,3325.4,5.84292]
[1722311906439,1.57999834,3325.8,3325.7,1.11]
[1722311906800,1.57999834,3325.9,3325.7,1.11]
[1722311906999,1.57999834,3325.9,3325.8,35.0]
[1722311908442,2.40522,3326.1,3325.8,35.0]
[1722311908916,1.57949198,3325.9,3325.8,35.0]
[1722311909303,1.579612,3325.9,3325.8,35.0]
[1722311910933,2.40529,3326.0,3325.8,35.0]
[1722311912451,1.57950565,3325.9,3325.8,35.0]
[1722311912643,2.40529,3326.0,3325.8,35.0]
[1722311913158,1.57950563,3325.9,3325.8,35.0]
[1722311913747,2.40529,3326.0,3325.8,35.0]
[1722311913946,1.57946385,3325.9,3325.8,35.0]
[1722311915261,2.40522,3326.1,3325.8,35.0]
[1722311915491,1.57953084,3325.9,3325.8,35.0]
[1722311916962,0.14784133,3325.9,3325.8,35.0]
[1722311917151,4.300657,3326.1,3325.8,35.0]
[1722311917351,1.72728915,3325.9,3325.8,35.0]
[1722311917581,1.57944782,3325.9,3325.8,35.0]
[1722311917893,1.72728915,3325.9,3325.8,35.0]
[1722311919791,0.14784133,3325.9,3325.8,40.44381288]
[1722311919938,0.14784133,3325.9,3325.8,45.25467288]
[1722311920140,8.99944782,3326.5,3326.0,2.40525]
[1722311920344,8.99944782,3326.5,3326.2,1.11]
[1722311920541,7.42,3326.5,3326.2,1.11]
[1722311923477,1.57780659,3326.7,3326.2,1.11]
[1722311924291,1.5770189,3326.7,3326.2,1.11]
[1722311924698,3.9817389,3326.8,3326.2,1.11]
[1722311925299,3.98145125,3326.8,3326.2,1.11]
[1722311926489,1.57673125,3326.8,3326.3,2.3018]
[1722311926700,1.57673125,3326.9,3326.4,1.11]
[1722311927198,3.98137125,3326.9,3326.4,1.11]
[1722311927402,3.98137125,3326.9,3326.5,35.0]
[1722311928384,3.98062717,3326.9,3326.5,35.0]
[1722311929380,2.40464,3326.9,3326.5,35.0]
[1722311931817,3.97982455,3326.9,3326.5,35.0]
[1722311932165,0.1482322,3326.8,3326.5,35.0]
[1722311932493,2.40485,3326.6,3326.5,35.0]
[1722311932899,7.1462,3326.6,3326.5,35.0]
[1722311933116,8.16686376,3326.6,3326.5,35.0]
[1722311933773,3.42551376,3326.6,3326.5,35.0]
[1722311933971,4.9582253,3326.6,3326.5,35.0]
[1722311934424,2.5533753,3326.6,3326.5,35.0]
[1722311936095,2.5533753,3326.6,3326.3,1.11]
[1722311936096,0.1485253,3326.6,3326.3,1.11]
[1722311936610,2.40479,3326.7,3326.5,35.0]
[1722311937173,2.40479,3326.7,3326.6,0.09910877]
[1722311937473,2.40475,3326.8,3326.6,0.09910877]
[1722311940594,2.40475,3326.8,3326.7,35.0]
[1722311941535,2.40475,3326.8,3326.7,35.09910579]
[1722311946958,35.44135078,3326.8,3326.7,35.09910579]
[1722311952171,37.84611078,3326.8,3326.7,35.09910579]
[1722311953657,35.44135078,3326.8,3326.7,35.09910579]
[1722311959349,35.44135078,3326.8,3326.7,0.09910579]
[1722311959952,35.44135078,3326.8,3326.7,35.09910579]
[1722311960449,33.03660078,3326.8,3326.7,35.09910579]
[1722311960948,33.03660078,3326.8,3326.7,36.20910579]
[1722311961361,33.03660078,3326.8,3326.7,38.30466218]
[1722311962368,34.6145899,3326.8,3326.7,38.30466218]
[1722311963086,34.6145899,3326.8,3326.7,35.09910579]
[1722311963321,33.03660078,3326.8,3326.7,35.09910579]